fUST/lending_fUST_20250716
["ID","MTS","AMOUNT","RATE_DAILY","PERIOD"]
[372431480,1752642645011,-460.0,0.00019452,2]
[372431481,1752642645020,-460.0,0.00019452,2]
[372431482,1752642645029,-460.0,0.00019452,2]
[372431483,1752642645038,-460.0,0.00019452,2]
[372431484,1752642645047,-460.0,0.00019452,2]
[372431485,1752642645057,-460.0,0.00019452,2]
[372431486,1752642645066,-460.0,0.00019452,2]
[372431487,1752642645076,-460.0,0.00019452,2]
[372431488,1752642645085,-460.0,0.00019452,2]
[372431489,1752642645095,-460.0,0.00019452,2]
[372431490,1752642645104,-1003.75,0.00019452,2]
[372431491,1752642645113,-500.0,0.00019473,2]
[372431492,1752642645122,-500.0,0.00019473,2]
[372431493,1752642645133,-500.0,0.00019473,2]
[372431494,1752642645142,-150.0,0.00019497,2]
[372431495,1752642645151,-2142.66,0.000195,2]
[372431496,1752642645172,-29636.17,0.000195,2]
[372431497,1752642645184,-767.36586624,0.00019592,2]
[372431498,1752642645195,-531.66363147,0.00019721,2]
[372431499,1752642645204,-342.96839752,0.00019721,2]
[372431500,1752642645214,-560.15945798,0.00019726,2]
[372431501,1752642645224,-460.0,0.00019726,2]
[372431503,1752642645234,-460.0,0.00019726,2]
[372431505,1752642645245,-460.0,0.00019726,2]
[372431507,1752642645254,-460.0,0.00019726,2]
[372431508,1752642645264,-460.0,0.00019726,2]
[372431509,1752642645273,-463.4915103,0.00019726,2]
[372431510,1752642645282,-460.0,0.00019726,2]
[372431511,1752642645291,-460.0,0.00019726,2]
[372431512,1752642645301,-332.59587824,0.00019726,2]
[372431513,1752642645311,-460.0,0.00019726,2]
[372431514,1752642645321,-460.0,0.00019726,2]
[372431515,1752642645330,-460.0,0.00019726,2]
[372431516,1752642645340,-460.0,0.00019726,2]
[372431517,1752642645349,-460.0,0.00019726,2]
[372431518,1752642645359,-269.91568825,0.00019726,2]
[372431519,1752642645368,-460.0,0.00019726,2]
[372431520,1752642645378,-466.63562798,0.00019726,2]
[372431521,1752642645389,-460.0,0.00019726,2]
[372431522,1752642645399,-319.58,0.00019726,2]
[372431523,1752642645408,-460.0,0.00019726,2]
[372431524,1752642645418,-460.0,0.00019726,2]
[372431525,1752642645429,-460.0,0.00019726,2]
[372431526,1752642645439,-460.0,0.00019726,2]
[372431528,1752642645450,-460.0,0.00019726,2]
[372431529,1752642645459,-460.0,0.00019726,2]
[372431530,1752642645469,-461.31336856,0.00019726,2]
[372431531,1752642645478,-460.0,0.00019726,2]
[372431532,1752642645487,-460.0,0.00019726,2]
[372431533,1752642645497,-460.0,0.00019726,2]
[372431534,1752642645507,-403.18,0.00019726,2]
[372431535,1752642645516,-460.0,0.00019726,2]
[372431536,1752642645526,-412.73399441,0.00019726,2]
[372431537,1752642645536,-163.23226988,0.00019726,2]
[372431538,1752642645545,-469.51430403,0.00019726,2]
[372431539,1752642645555,-460.0,0.00019726,2]
[372431541,1752642645565,-460.0,0.00019726,2]
[372431542,1752642645575,-460.0,0.00019726,2]
[372431543,1752642645584,-460.0,0.00019726,2]
[372431544,1752642645594,-460.0,0.00019726,2]
[372431545,1752642645603,-310.71482334,0.00019726,2]
[372431546,1752642645613,-473.94804439,0.00019726,2]
[372431548,1752642645622,-460.0,0.00019726,2]
[372431550,1752642645632,-460.0,0.00019726,2]
[372431552,1752642645642,-460.0,0.00019726,2]
[372431554,1752642645651,-460.0,0.00019726,2]
[372431556,1752642645661,-460.0,0.00019726,2]
[372431558,1752642645670,-923.93,0.00019726,2]
[372431560,1752642645680,-460.0,0.00019726,2]
[372431562,1752642645690,-460.0,0.00019726,2]
[372431564,1752642645701,-2283.24,0.00019726,2]
[372431566,1752642645711,-464.83603832,0.00019726,2]
[372431568,1752642645720,-460.0,0.00019726,2]
[372431570,1752642645729,-460.0,0.00019726,2]
[372431572,1752642645739,-460.0,0.00019726,2]
[372431574,1752642645748,-214.2653984,0.00019726,2]
[372431576,1752642645758,-460.0,0.00019726,2]
[372431578,1752642645767,-460.0,0.00019726,2]
[372431580,1752642645777,-1022.23,0.00019726,2]
[372431582,1752642645787,-460.0,0.00019726,2]
[372431584,1752642645797,-460.0,0.00019726,2]
[372431586,1752642645806,-460.0,0.00019726,2]
[372431588,1752642645816,-4071.95,0.00019726,2]
[372431590,1752642645827,-235.32662013,0.00019726,2]
[372431591,1752642645837,-460.0,0.00019726,2]
[372431592,1752642645846,-465.12878954,0.00019726,2]
[372431594,1752642645856,-2122.3,0.00019726,2]
[372431595,1752642645865,-460.0,0.00019726,2]
[372431596,1752642645874,-4279.83,0.00019726,2]
[372431597,1752642645885,-460.0,0.00019726,2]
[372431598,1752642645894,-460.0,0.00019726,2]
[372431599,1752642645903,-463.71353092,0.00019726,2]
[372431600,1752642645914,-715.29,0.00019726,2]
[372431601,1752642645924,-460.0,0.00019726,2]
[372431602,1752642645934,-460.0,0.00019726,2]
[372431603,1752642645943,-460.0,0.00019726,2]
[372431604,1752642645954,-460.0,0.00019726,2]
[372431605,1752642645964,-374.04649859,0.00019726,2]
[372431606,1752642645975,-460.0,0.00019726,2]
[372431607,1752642645984,-512.74,0.00019726,2]
[372431608,1752642645996,-1120.25,0.00019726,2]
[372431609,1752642646006,-582.29859121,0.00019726,2]
[372431610,1752642646016,-460.0,0.00019726,2]
[372431611,1752642646026,-460.0,0.00019726,2]
[372431612,1752642646035,-1066.45,0.00019726,2]
[372431613,1752642646046,-460.0,0.00019726,2]
[372431614,1752642646059,-460.0,0.00019726,2]
[372431615,1752642646069,-460.0,0.00019726,2]
[372431616,1752642646078,-460.0,0.00019726,2]
[372431617,1752642646089,-460.0,0.00019726,2]
[372431618,1752642646098,-460.0,0.00019726,2]
[372431619,1752642646108,-460.0,0.00019726,2]
[372431620,1752642646194,-1703.31,0.00019726,2]
[372431621,1752642646205,-460.0,0.00019726,2]
[372431622,1752642646214,-462.32704462,0.00019726,2]
[372431623,1752642646223,-460.0,0.00019726,2]
[372431624,1752642646234,-460.0,0.00019726,2]
[372431625,1752642646244,-460.0,0.00019726,2]
[372431626,1752642646254,-460.0,0.00019726,2]
[372431627,1752642646264,-460.0,0.00019726,2]
[372431628,1752642646273,-460.0,0.00019726,2]
[372431629,1752642646283,-460.0,0.00019726,2]
[372431630,1752642646294,-1517.22,0.00019726,2]
[372431631,1752642646303,-460.0,0.00019726,2]
[372431632,1752642646313,-460.0,0.00019726,2]
[372431633,1752642646323,-460.0,0.00019726,2]
[372431634,1752642646333,-460.0,0.00019726,2]
[372431635,1752642646342,-460.0,0.00019726,2]
[372431636,1752642646351,-460.0,0.00019726,2]
[372431637,1752642646365,-460.0,0.00019726,2]
[372431638,1752642646382,-310.56589951,0.00019726,2]
[372431639,1752642646392,-460.0,0.00019726,2]
[372431640,1752642646402,-460.0,0.00019726,2]
[372431641,1752642646412,-464.83972985,0.00019726,2]
[372431642,1752642646421,-580.07,0.00019726,2]
[372431643,1752642646431,-460.0,0.00019726,2]
[372431644,1752642646440,-520.48083341,0.00019726,2]
[372431645,1752642646450,-460.0,0.00019726,2]
[372431646,1752642646460,-460.0,0.00019726,2]
[372431647,1752642646469,-460.0,0.00019726,2]
[372431648,1752642646479,-1644.32,0.00019726,2]
[372431649,1752642646488,-460.0,0.00019726,2]
[372431650,1752642646498,-460.0,0.00019726,2]
[372431651,1752642646507,-460.0,0.00019726,2]
[372431652,1752642646517,-460.0,0.00019726,2]
[372431653,1752642646527,-269.42740682,0.00019726,2]
[372431654,1752642646536,-465.04092329,0.00019726,2]
[372431655,1752642646546,-1409.09,0.00019726,2]
[372431656,1752642646555,-460.0,0.00019726,2]
[372431657,1752642646564,-1146.2,0.00019726,2]
[372431658,1752642646574,-460.0,0.00019726,2]
[372431659,1752642646583,-460.0,0.00019726,2]
[372431660,1752642646593,-460.0,0.00019726,2]
[372431661,1752642646602,-460.0,0.00019726,2]
[372431662,1752642646611,-460.0,0.00019726,2]
[372431663,1752642646621,-460.0,0.00019726,2]
[372431664,1752642646630,-460.0,0.00019726,2]
[372431665,1752642646639,-460.0,0.00019726,2]
[372431666,1752642646648,-464.16800289,0.00019726,2]
[372431667,1752642646658,-532.87573691,0.00019726,2]
[372431668,1752642646667,-460.0,0.00019726,2]
[372431669,1752642646677,-475.18775664,0.00019726,2]
[372431670,1752642646686,-152.621524,0.00019726,2]
[372431671,1752642646696,-1003.75,0.00019726,2]
[372431672,1752642646705,-500.0,0.00019773,2]
[372431673,1752642646715,-503.33669226,0.00019773,2]
[372431674,1752642646724,-508.27684544,0.00019773,2]
[372431675,1752642646735,-1170.33503813,0.0001999,2]
[372431676,1752642646746,-460.0,0.0002,2]
[372431677,1752642646756,-460.0,0.0002,2]
[372431678,1752642646766,-460.0,0.0002,2]
[372431679,1752642646776,-460.0,0.0002,2]
[372431680,1752642646785,-460.0,0.0002,2]
[372431681,1752642646795,-461.74348419,0.0002,2]
[372431682,1752642646804,-466.25021099,0.0002,2]
[372431683,1752642646813,-455.0,0.0002,2]
[372431684,1752642646823,-384.16436063,0.0002,2]
[372431685,1752642646832,-571.99651424,0.0002,2]
[372431686,1752642646841,-460.0,0.0002,2]
[372431687,1752642646850,-500.78,0.0002,2]
[372431688,1752642646859,-460.0,0.0002,2]
[372431689,1752642646868,-460.0,0.0002,2]
[372431690,1752642646878,-460.0,0.0002,2]
[372431691,1752642646888,-276.89,0.0002,2]
[372431692,1752642646897,-464.42734761,0.0002,2]
[372431693,1752642646906,-466.57444813,0.0002,2]
[372431694,1752642646916,-460.0,0.0002,2]
[372431695,1752642646927,-460.0,0.0002,2]
[372431696,1752642646937,-460.0,0.0002,2]
[372431697,1752642646947,-465.88780789,0.0002,2]
[372431698,1752642646957,-510.88966242,0.0002,2]
[372431699,1752642646968,-462.92361912,0.0002,2]
[372431700,1752642646978,-467.87835651,0.0002,2]
[372431701,1752642646988,-524.22,0.0002,2]
[372431702,1752642646999,-923.93,0.0002,2]
[372431703,1752642647008,-2283.24,0.0002,2]
[372431704,1752642647018,-460.0,0.0002,2]
[372431705,1752642647028,-460.0,0.0002,2]
[372431706,1752642647038,-463.65475308,0.0002,2]
[372431707,1752642647047,-1022.23,0.0002,2]
[372431708,1752642647058,-460.0,0.0002,2]
[372431709,1752642647068,-428.44191386,0.0002,2]
[372431710,1752642647078,-4071.95,0.0002,2]
[372431711,1752642647087,-182.54891849,0.0002,2]
[372431712,1752642647096,-2122.3,0.0002,2]
[372431713,1752642647106,-460.0,0.0002,2]
[372431714,1752642647115,-460.0,0.0002,2]
[372431715,1752642647125,-4279.83,0.0002,2]
[372431716,1752642647136,-715.29,0.0002,2]
[372431717,1752642647145,-460.0,0.0002,2]
[372431718,1752642647157,-460.0,0.0002,2]
[372431719,1752642647166,-463.47553981,0.0002,2]
[372431720,1752642647176,-460.0,0.0002,2]
[372431721,1752642647185,-1120.25,0.0002,2]
[372431722,1752642647196,-460.0,0.0002,2]
[372431723,1752642647205,-470.69942342,0.0002,2]
[372431724,1752642647215,-1066.45,0.0002,2]
[372431725,1752642647225,-460.0,0.0002,2]
[372431726,1752642647235,-460.0,0.0002,2]
[372431727,1752642647246,-460.0,0.0002,2]
[372431728,1752642647255,-344.03695409,0.0002,2]
[372431729,1752642647264,-460.0,0.0002,2]
[372431730,1752642647274,-1703.31,0.0002,2]
[372431731,1752642647283,-460.0,0.0002,2]
[372431732,1752642647293,-464.63556108,0.0002,2]
[372431733,1752642647302,-277.53,0.0002,2]
[372431734,1752642647312,-180.41,0.0002,2]
[372431735,1752642647323,-460.0,0.0002,2]
[372431736,1752642647332,-460.0,0.0002,2]
[372431737,1752642647342,-1517.22,0.0002,2]
[372431738,1752642647351,-476.8186806,0.0002,2]
[372431739,1752642647361,-460.0,0.0002,2]
[372431740,1752642647370,-460.0,0.0002,2]
[372431741,1752642647381,-460.0,0.0002,2]
[372431742,1752642647392,-460.0,0.0002,2]
[372431743,1752642647401,-460.0,0.0002,2]
[372431744,1752642647410,-460.0,0.0002,2]
[372431745,1752642647419,-474.00043524,0.0002,2]
[372431746,1752642647429,-580.07,0.0002,2]
[372431747,1752642647438,-460.0,0.0002,2]
[372431748,1752642647448,-460.0,0.0002,2]
[372431749,1752642647457,-463.12952971,0.0002,2]
[372431750,1752642647467,-460.0,0.0002,2]
[372431751,1752642647477,-1644.32,0.0002,2]
[372431752,1752642647486,-462.00856228,0.0002,2]
[372431753,1752642647496,-450.0,0.0002,2]
[372431754,1752642647505,-161.37139575,0.0002,2]
[372431755,1752642647515,-462.34098753,0.0002,2]
[372431756,1752642647525,-1409.09,0.0002,2]
[372431757,1752642647534,-1146.2,0.0002,2]
[372431758,1752642647543,-460.0,0.0002,2]
[372431759,1752642647553,-460.0,0.0002,2]
[372431760,1752642647562,-460.0,0.0002,2]
[372431761,1752642647572,-464.03756129,0.0002,2]
[372431762,1752642647581,-460.0,0.0002,2]
[372431763,1752642647590,-460.0,0.0002,2]
[372431764,1752642647599,-460.0,0.0002,2]
[372431765,1752642647609,-1003.75,0.0002,2]
[372431766,1752642647618,-524.40790772,0.00020021,2]
[372431767,1752642647628,-526.52056024,0.00020021,2]
[372431768,1752642647638,-1007.96290966,0.00020021,2]
[372431769,1752642647647,-160.0,0.00020042,2]
[372431770,1752642647656,-500.0,0.00020082,2]
[372431771,1752642647666,-504.38077274,0.00020082,2]
[372431772,1752642647675,-500.0,0.00020082,2]
[372431773,1752642647685,-502.71250019,0.00020082,2]
[372431774,1752642647694,-500.0,0.00020082,2]
[372431775,1752642647704,-500.0,0.00020082,2]
[372431776,1752642647713,-500.0,0.00020082,2]
[372431777,1752642647723,-504.14347637,0.00020082,2]
[372431778,1752642647733,-500.0,0.00020082,2]
[372431779,1752642647742,-501.74631657,0.00020082,2]
[372431780,1752642647752,-374.74725331,0.00020082,2]
[372431781,1752642647761,-443.04809324,0.00020082,2]
[372431782,1752642647770,-500.95998998,0.00020082,2]
[372431783,1752642647780,-500.0,0.00020082,2]
[372431784,1752642647789,-151.0,0.000201,4]
[372431785,1752642647799,-293.075071,0.00020187,2]
[372431786,1752642647808,-460.0,0.00020273,2]
[372431787,1752642647818,-472.41701683,0.00020273,2]
[372431788,1752642647827,-460.0,0.00020273,2]
[372431789,1752642647837,-460.0,0.00020273,2]
[372431790,1752642647846,-480.44803317,0.00020273,2]
[372431791,1752642647856,-460.0,0.00020273,2]
[372431792,1752642647865,-244.06028957,0.00020273,2]
[372431793,1752642647874,-460.0,0.00020273,2]
[372431794,1752642647883,-460.0,0.00020273,2]
[372431795,1752642647893,-579.93380105,0.00020273,2]
[372431796,1752642647902,-460.0,0.00020273,2]
[372431797,1752642647912,-923.93,0.00020273,2]
[372431798,1752642647922,-2283.24,0.00020273,2]
[372431799,1752642647932,-460.0,0.00020273,2]
[372431800,1752642647942,-473.71998583,0.00020273,2]
[372431801,1752642647952,-1022.23,0.00020273,2]
[372431802,1752642647962,-460.0,0.00020273,2]
[372431803,1752642648045,-4071.95,0.00020273,2]
[372431804,1752642648055,-2122.3,0.00020273,2]
[372431805,1752642648065,-464.94471858,0.00020273,2]
[372431806,1752642648074,-4279.83,0.00020273,2]
[372431807,1752642648084,-715.29,0.00020273,2]
[372431808,1752642648094,-159.19407864,0.00020273,2]
[372431809,1752642648103,-460.0,0.00020273,2]
[372431810,1752642648113,-460.0,0.00020273,2]
[372431811,1752642648123,-1120.25,0.00020273,2]
[372431812,1752642648132,-460.0,0.00020273,2]
[372431813,1752642648142,-1066.45,0.00020273,2]
[372431814,1752642648152,-460.0,0.00020273,2]
[372431815,1752642648167,-460.0,0.00020273,2]
[372431816,1752642648176,-202.92680693,0.00020273,2]
[372431817,1752642648185,-460.0,0.00020273,2]
[372431818,1752642648195,-1703.31,0.00020273,2]
[372431819,1752642648204,-185.69926052,0.00020273,2]
[372431820,1752642648219,-216.50903781,0.00020273,2]
[372431821,1752642648229,-460.0,0.00020273,2]
[372431822,1752642648244,-1517.22,0.00020273,2]
[372431823,1752642648254,-460.0,0.00020273,2]
[372431824,1752642648264,-464.25450075,0.00020273,2]
[372431825,1752642648274,-456.03483581,0.00020273,2]
[372431826,1752642648284,-460.0,0.00020273,2]
[372431827,1752642648294,-580.07,0.00020273,2]
[372431828,1752642648303,-460.0,0.00020273,2]
[372431829,1752642648313,-460.0,0.00020273,2]
[372431830,1752642648323,-252.86942405,0.00020273,2]
[372431831,1752642648333,-1644.32,0.00020273,2]
[372431832,1752642648343,-1409.09,0.00020273,2]
[372431833,1752642648352,-1146.2,0.00020273,2]
[372431834,1752642648362,-460.0,0.00020273,2]
[372431835,1752642648372,-460.0,0.00020273,2]
[372431836,1752642648382,-460.0,0.00020273,2]
[372431837,1752642648391,-460.0,0.00020273,2]
[372431838,1752642648401,-460.0,0.00020273,2]
[372431839,1752642648414,-501.0211528,0.00020273,2]
[372431840,1752642648423,-1003.75,0.00020273,2]
[372431841,1752642648433,-1000.0,0.00020321,2]
[372431842,1752642648442,-396.38,0.00020438,3]
[372431843,1752642648452,-877.62,0.00020538,3]
[372431844,1752642648461,-438.82,0.00020538,3]
[372431845,1752642648471,-792.76,0.00020538,3]
[372431846,1752642648481,-470.66208166,0.00020547,2]
[372431847,1752642648490,-469.38807094,0.00020547,2]
[372431848,1752642648500,-460.0,0.00020547,2]
[372431849,1752642648510,-460.0,0.00020547,2]
[372431850,1752642648520,-363.79751571,0.00020547,2]
[372431851,1752642648529,-923.93,0.00020547,2]
[372431852,1752642648539,-2283.24,0.00020547,2]
[372431853,1752642648548,-460.0,0.00020547,2]
[372431854,1752642648558,-1022.23,0.00020547,2]
[372431855,1752642648568,-460.0,0.00020547,2]
[372431856,1752642648577,-4071.95,0.00020547,2]
[372431857,1752642648587,-2122.3,0.00020547,2]
[372431858,1752642648596,-4279.83,0.00020547,2]
[372431859,1752642648606,-715.29,0.00020547,2]
[372431860,1752642648615,-460.0,0.00020547,2]
[372431861,1752642648625,-460.0,0.00020547,2]
[372431862,1752642648634,-1120.25,0.00020547,2]
[372431863,1752642648643,-460.0,0.00020547,2]
[372431864,1752642648653,-1066.45,0.00020547,2]
[372431865,1752642648663,-517.48,0.00020547,2]
[372431866,1752642648673,-460.0,0.00020547,2]
[372431867,1752642648682,-460.0,0.00020547,2]
[372431868,1752642648693,-1703.31,0.00020547,2]
[372431869,1752642648703,-460.0,0.00020547,2]
[372431870,1752642648712,-1517.22,0.00020547,2]
[372431871,1752642648722,-460.0,0.00020547,2]
[372431872,1752642648731,-580.12,0.00020547,2]
[372431873,1752642648740,-580.07,0.00020547,2]
[372431874,1752642648750,-460.0,0.00020547,2]
[372431875,1752642648759,-460.0,0.00020547,2]
[372431876,1752642648768,-1644.32,0.00020547,2]
[372431877,1752642648778,-1409.09,0.00020547,2]
[372431878,1752642648787,-1146.2,0.00020547,2]
[372431879,1752642648796,-460.0,0.00020547,2]
[372431880,1752642648806,-460.0,0.00020547,2]
[372431881,1752642648816,-460.0,0.00020547,2]
[372431882,1752642648825,-460.0,0.00020547,2]
[372431883,1752642648835,-460.0,0.00020547,2]
[372431884,1752642648844,-1003.75,0.00020547,2]
[372431885,1752642648853,-260.0,0.0002059,2]
[372431886,1752642648863,-151.0,0.000206,3]
[372431887,1752642648873,-838.99048831,0.00020628,2]
[372431888,1752642648882,-215.5496034,0.00020628,2]
[372431889,1752642648892,-160.0,0.00020628,2]
[372431890,1752642648901,-160.0,0.00020628,2]
[372431891,1752642648911,-468.75,0.00020628,2]
[372431892,1752642648920,-160.0,0.00020628,2]
[372431893,1752642648930,-214.40824756,0.00020628,2]
[372431894,1752642648939,-500.74551756,0.0002063,2]
[372431895,1752642648949,-1000.0,0.0002063,2]
[372431896,1752642648959,-619.23527322,0.0002063,2]
[372431897,1752642648968,-509.97453213,0.0002063,2]
[372431898,1752642648977,-1004.00220653,0.0002063,2]
[372431899,1752642648987,-1000.0,0.0002063,2]
[372431900,1752642648997,-501.23142804,0.0002063,2]
[372431901,1752642649006,-160.0,0.00020639,2]
[372431902,1752642649015,-160.0,0.00020639,2]
[372431903,1752642649025,-160.0,0.00020639,2]
[372431904,1752642649035,-160.0,0.00020639,2]
[372431905,1752642649045,-525.58295679,0.00020639,2]
[372431906,1752642649054,-12605.49131908,0.00020639,2]
[372431907,1752642649064,-160.0,0.00020639,2]
[372431908,1752642649073,-160.0,0.00020639,2]
[372431909,1752642649083,-230.8109288,0.00020639,2]
[372431910,1752642649092,-1680.0,0.00020703,2]
[372431911,1752642649101,-420.0,0.0002071,2]
[372431912,1752642649111,-1890.4431509,0.00020712,2]
[372431913,1752642649120,-480.0,0.0002081,2]
[372431914,1752642649130,-471.51827041,0.00020821,2]
[372431915,1752642649140,-460.0,0.00020821,2]
[372431916,1752642649150,-923.93,0.00020821,2]
[372431917,1752642649165,-2283.24,0.00020821,2]
[372431918,1752642649174,-460.0,0.00020821,2]
[372431919,1752642649184,-1022.23,0.00020821,2]
[372431920,1752642649193,-460.0,0.00020821,2]
[372431921,1752642649203,-4071.95,0.00020821,2]
[372431922,1752642649212,-2122.3,0.00020821,2]
[372431923,1752642649222,-4279.83,0.00020821,2]
[372431924,1752642649231,-715.29,0.00020821,2]
[372431925,1752642649241,-451.31,0.00020821,2]
[372431926,1752642649251,-460.0,0.00020821,2]
[372431927,1752642649261,-1120.25,0.00020821,2]
[372431928,1752642649270,-433.27804198,0.00020821,2]
[372431929,1752642649280,-1066.45,0.00020821,2]
[372431930,1752642649290,-470.44305965,0.00020821,2]
[372431931,1752642649300,-460.0,0.00020821,2]
[372431932,1752642649310,-1703.31,0.00020821,2]
[372431933,1752642649320,-533.89096883,0.00020821,2]
[372431934,1752642649331,-1517.22,0.00020821,2]
[372431935,1752642649341,-460.0,0.00020821,2]
[372431936,1752642649351,-580.07,0.00020821,2]
[372431937,1752642649361,-460.0,0.00020821,2]
[372431938,1752642649371,-460.0,0.00020821,2]
[372431939,1752642649380,-1644.32,0.00020821,2]
[372431940,1752642649391,-1409.09,0.00020821,2]
[372431941,1752642649401,-1146.2,0.00020821,2]
[372431942,1752642649411,-560.85,0.00020821,2]
[372431943,1752642649421,-460.0,0.00020821,2]
[372431944,1752642649431,-460.0,0.00020821,2]
[372431945,1752642649440,-460.0,0.00020821,2]
[372431946,1752642649451,-151.53806044,0.00020822,2]
[372431947,1752642649460,-500.0,0.00020822,2]
[372431948,1752642649470,-1500.0,0.00020868,2]
[372431949,1752642649479,-500.0,0.00020911,2]
[372431950,1752642649489,-1170.33503813,0.00020913,2]
[372431951,1752642649499,-5779.99835519,0.00021,2]
[372431952,1752642649510,-178.3908234,0.00021001,2]
[372431953,1752642649519,-257.209,0.00021001,2]
[372431954,1752642649530,-460.0,0.00021095,2]
[372431955,1752642649540,-923.93,0.00021095,2]
[372431956,1752642649550,-2283.24,0.00021095,2]
[372431957,1752642649559,-460.0,0.00021095,2]
[372431958,1752642649569,-1022.23,0.00021095,2]
[372431959,1752642649580,-460.0,0.00021095,2]
[372431960,1752642649590,-4071.95,0.00021095,2]
[372431961,1752642649600,-2122.3,0.00021095,2]
[372431962,1752642649610,-4279.83,0.00021095,2]
[372431963,1752642649619,-715.29,0.00021095,2]
[372431964,1752642649628,-460.0,0.00021095,2]
[372431965,1752642649638,-1120.25,0.00021095,2]
[372431966,1752642649647,-1066.45,0.00021095,2]
[372431967,1752642649657,-460.0,0.00021095,2]
[372431968,1752642649667,-1703.31,0.00021095,2]
[372431969,1752642649741,-1517.22,0.00021095,2]
[372431970,1752642649756,-460.0,0.00021095,2]
[372431971,1752642649766,-580.07,0.00021095,2]
[372431972,1752642649775,-460.0,0.00021095,2]
[372431973,1752642649786,-460.0,0.00021095,2]
[372431974,1752642649797,-1644.32,0.00021095,2]
[372431975,1752642649813,-1409.09,0.00021095,2]
[372431976,1752642649830,-1146.2,0.00021095,2]
[372431977,1752642649839,-460.0,0.00021095,2]
[372431978,1752642649848,-460.0,0.00021095,2]
[372431979,1752642649857,-151.0,0.00021095,2]
[372431980,1752642649867,-151.0,0.00021095,2]
[372431981,1752642649876,-460.0,0.00021095,2]
[372431982,1752642649888,-151.0,0.00021095,2]
[372431983,1752642649897,-500.0,0.00021096,2]
[372431984,1752642649907,-151.0,0.000211,4]
[372431985,1752642649916,-29636.17,0.000211,2]
[372431986,1752642649926,-151.0,0.000211,4]
[372431987,1752642649935,-151.988973,0.00021127,2]
[372431988,1752642649945,-151.0,0.00021127,2]
[372431989,1752642649955,-151.0,0.00021127,2]
[372431990,1752642649964,-151.0,0.00021127,2]
[372431991,1752642649974,-151.0,0.00021127,2]
[372431992,1752642649983,-151.0,0.00021127,2]
[372431993,1752642649993,-500.0,0.00021127,2]
[372431994,1752642650002,-360.0,0.00021138,2]
[372431995,1752642650012,-500.0,0.0002116,2]
[372431996,1752642650021,-501.02878966,0.0002116,2]
[372431997,1752642650031,-501.55765168,0.0002116,2]
[372431998,1752642650040,-500.0,0.0002116,2]
[372431999,1752642650049,-471.55242615,0.0002116,2]
[372432000,1752642650059,-1500.0,0.00021178,2]
[372432001,1752642650068,-1500.0,0.00021178,2]
[372432002,1752642650078,-500.0,0.0002119,2]
[372432003,1752642650087,-1321.24,0.000212,2]
[372432004,1752642650097,-500.0,0.00021212,2]
[372432005,1752642650106,-182.81658657,0.00021289,2]
[372432006,1752642650115,-500.75307769,0.00021289,2]
[372432007,1752642650124,-460.0,0.00021369,2]